fUSD/lending_fUSD_20250312
["ID","MTS","AMOUNT","RATE_DAILY","PERIOD"]
[355985948,1741763056741,473.74,0.00028546,120]
[355985949,1741763058895,500.0,0.00028546,120]
[355985950,1741763059217,500.0,0.00028546,120]
[355985951,1741763060498,500.0,0.00028546,120]
[355985952,1741763060761,500.0,0.00028546,120]
[355985953,1741763060825,289.26,0.00028546,120]
[355985954,1741763061270,500.0,0.00028546,120]
[355985955,1741763061530,500.0,0.00028546,120]
[355985956,1741763061773,252.62,0.00028546,120]
[355985958,1741763066194,500.0,0.00028546,120]
[355985959,1741763066446,500.0,0.00028546,120]
[355985960,1741763066733,500.0,0.00028546,120]
[355985961,1741763067012,500.0,0.00028546,120]
[355985962,1741763067284,500.0,0.00028546,120]
[355985963,1741763067540,500.0,0.00028546,120]
[355985964,1741763068081,500.0,0.00028546,120]
[355985965,1741763068348,435.07,0.00028546,120]
[355985966,1741763071296,500.0,0.00028546,120]
[355985967,1741763071860,500.0,0.00028546,120]
[355985968,1741763072116,274.91,0.00028546,120]
[355985969,1741763078081,500.0,0.00028546,120]
[355985970,1741763079305,500.0,0.00028546,120]
[355985971,1741763091757,500.0,0.00028546,120]
[355985973,1741763094289,576.73,0.00028546,120]
[355985974,1741763094814,500.0,0.00028546,120]
[355985975,1741763096315,500.0,0.00028546,120]
[355985976,1741763105357,500.0,0.00028548,120]
[355985977,1741763111291,500.0,0.00028548,120]
[355985978,1741763111624,500.0,0.00028548,120]
[355985979,1741763111799,362.82,0.00028548,120]
[355985980,1741763111927,500.0,0.00028548,120]
[355985981,1741763112757,-150.0,8.91e-05,2]
[355985982,1741763116601,500.0,0.00028548,120]
[355985983,1741763116683,373.29195115,0.00028548,120]
[355985984,1741763119272,500.0,0.00028548,120]
[355985985,1741763121138,371.30866467,0.00028548,120]
[355985986,1741763122070,500.0,0.00028548,120]
[355985987,1741763126003,565.74,0.00028548,120]
[355985989,1741763128727,500.0,0.00028548,120]
[355985990,1741763132370,500.0,0.00028548,120]
[355985991,1741763133667,500.0,0.00028548,120]
[355985992,1741763135033,500.0,0.00028548,120]
[355985993,1741763135116,563.38,0.00028548,120]
[355985994,1741763139162,150.0,8.834e-05,2]
[355985995,1741763144421,500.0,0.00028548,120]
[355985996,1741763144489,500.0,0.00028548,120]
[355985997,1741763149039,500.0,0.00028548,120]
[355985998,1741763152631,500.0,0.00028548,120]
[355985999,1741763152964,540.0,0.00028548,120]
[355986000,1741763154814,500.0,0.00028548,120]
[355986001,1741763157564,337.99,8.815e-05,3]
[355986002,1741763159811,500.0,0.00028548,120]
[355986003,1741763161568,500.0,0.00028548,120]
[355986004,1741763172128,500.0,0.00028548,120]
[355986005,1741763174714,500.0,0.00028548,120]
[355986006,1741763181172,500.0,0.00028548,120]
[355986008,1741763204971,578.62,0.00028548,120]
[355986009,1741763209412,500.0,0.00028548,120]
[355986010,1741763210598,500.0,0.00028548,120]
[355986013,1741763216214,-56.91,8.91e-05,2]
[355986014,1741763216238,-385.17,8.932e-05,2]
[355986015,1741763216262,-150.0,9.07e-05,2]
[355986016,1741763216287,-364.03,9.228e-05,2]
[355986017,1741763216310,-150.0,9.306e-05,2]
[355986018,1741763216333,-172.32,9.368e-05,2]
[355986019,1741763216357,-801.8224,9.4e-05,2]
[355986020,1741763216379,-160.20004523,9.473e-05,2]
[355986021,1741763216408,-300.0,9.499e-05,2]
[355986022,1741763216432,-326853.29863834,9.5e-05,2]
[355986023,1741763216459,-250.0,9.523e-05,2]
[355986024,1741763216485,-157.85,9.525e-05,2]
[355986025,1741763216507,-150.0,9.542e-05,2]
[355986026,1741763216532,-1000.0,9.543e-05,2]
[355986027,1741763216555,-164.90329,9.6e-05,2]
[355986028,1741763216581,-157.85,9.62e-05,2]
[355986029,1741763216607,-359.88,9.69e-05,2]
[355986030,1741763216633,-157.85,9.715e-05,2]
[355986031,1741763216657,-150.0,9.778e-05,2]
[355986032,1741763216680,-562.0,9.781e-05,2]
[355986033,1741763216703,-550.0,9.801e-05,2]
[355986034,1741763216727,-150.0,9.801e-05,2]
[355986035,1741763216753,-157.85,9.81e-05,2]
[355986036,1741763216776,-2335.8281,9.9e-05,2]
[355986037,1741763216799,-1897.0,9.9e-05,2]
[355986038,1741763216824,-157.85,9.906e-05,2]
[355986039,1741763216849,-200.0,9.99e-05,2]
[355986040,1741763216872,-283.5839634,9.994e-05,2]
[355986041,1741763216895,-550.0,9.996e-05,2]
[355986042,1741763216922,-1382.92,9.999e-05,2]
[355986043,1741763216947,-517.29033704,9.999e-05,2]
[355986044,1741763216970,-919.0,0.0001,2]
[355986045,1741763216993,-185.627,0.0001,2]
[355986046,1741763217023,-1769.53539137,0.0001,2]
[355986047,1741763217046,-170.20615731,0.0001,2]
[355986048,1741763217070,-441.87,0.0001,2]
[355986049,1741763217098,-1353010.23693343,0.0001,2]
[355986050,1741763218758,470.03039508,0.00028548,120]
[355986051,1741763219794,500.0,0.00028548,120]
[355986052,1741763222107,500.0,0.00028548,120]
[355986053,1741763223157,500.0,0.00028548,120]
[355986054,1741763226433,500.0,0.00028548,120]
[355986055,1741763227923,627.17,0.00028548,120]
[355986056,1741763235792,500.0,0.00028548,120]
[355986057,1741763239287,500.0,0.00028548,120]
[355986058,1741763240030,181.40188041,0.00028548,120]
[355986059,1741763247953,500.0,0.00028548,120]
[355986060,1741763249864,500.0,0.00028548,120]
[355986061,1741763251190,500.0,0.00028548,120]
[355986062,1741763253266,500.0,0.00028548,120]
[355986063,1741763255643,500.0,0.00028548,120]
[355986064,1741763259521,500.0,0.00028548,120]
[355986065,1741763259765,397.80221189,0.00028548,120]
[355986066,1741763260093,500.0,0.00028548,120]
[355986067,1741763275978,500.0,0.00028548,120]
[355986068,1741763279906,500.0,0.00028548,120]
[355986069,1741763281852,500.0,0.00028548,120]
[355986070,1741763282121,161.1661148,0.00028548,120]
[355986071,1741763286326,500.0,0.00028548,120]
[355986072,1741763286617,477.3598201,0.00028548,120]
[355986073,1741763288248,500.0,0.00028548,120]
[355986074,1741763289904,500.0,0.00028548,120]
[355986075,1741763292214,500.0,0.00028548,120]
[355986076,1741763292459,500.0,0.00028548,120]
[355986077,1741763314036,500.0,0.00028548,120]
[355986078,1741763314333,500.0,0.00028548,120]
[355986079,1741763315786,500.0,0.00028548,120]
[355986080,1741763316362,500.0,0.00028548,120]
[355986081,1741763318024,500.0,0.00028548,120]
[355986082,1741763318446,500.0,0.00028548,120]
[355986083,1741763328786,500.0,0.00028548,120]
[355986084,1741763329289,500.0,0.00028548,120]
[355986085,1741763338138,500.0,0.00028548,120]
[355986086,1741763338587,500.0,0.00028548,120]
[355986087,1741763338857,500.0,0.00028548,120]
[355986088,1741763339115,500.0,0.00028548,120]
[355986089,1741763339364,500.0,0.00028548,120]
[355986090,1741763339614,500.0,0.00028548,120]
[355986091,1741763339856,500.0,0.00028548,120]
[355986092,1741763340105,500.0,0.00028548,120]
[355986093,1741763340174,500.0,0.00028548,120]
[355986094,1741763340392,500.0,0.00028548,120]
[355986095,1741763340736,572.94,0.00028548,120]
[355986096,1741763340996,500.0,0.00028548,120]
[355986097,1741763341241,502.64825736,0.00028548,120]
[355986098,1741763342151,500.0,0.00028548,120]
[355986099,1741763350093,500.0,0.00028548,120]
[355986101,1741763360336,500.0,0.00028548,120]
[355986102,1741763363267,500.0,0.00028548,120]
[355986103,1741763363530,500.0,0.00028548,120]
[355986104,1741763379088,-16411.3467022,9.994e-05,2]
[355986105,1741763379113,-550.0,9.997e-05,2]
[355986106,1741763379136,-150.0,9.997e-05,2]
[355986107,1741763379158,-2116.31760734,9.997e-05,2]
[355986108,1741763379182,-729.0,0.0001,2]
[355986109,1741763379213,-884.76769568,0.0001,2]
[355986110,1741763379249,-924682.9840001,0.0001,2]
[355986111,1741763380012,500.0,0.00028548,120]
[355986112,1741763380267,509.88,0.00028548,120]
[355986113,1741763380327,525.72,0.00028548,120]
[355986115,1741763382337,500.0,0.00028548,120]
[355986116,1741763382588,621.38,0.00028548,120]
[355986117,1741763386344,500.0,0.00028548,120]
[355986118,1741763386595,500.0,0.00028548,120]
[355986119,1741763398199,500.0,0.00028548,120]
[355986120,1741763399104,500.0,0.00028564,120]
[355986121,1741763399373,500.0,0.00028564,120]
[355986122,1741763401924,1031.1,8.219e-05,2]
[355986123,1741763403951,500.0,0.00028564,120]
[355986124,1741763412454,500.0,0.00028564,120]
[355986125,1741763422092,515.21,0.00028564,120]
[355986126,1741763423025,570.02,0.00028564,120]
[355986127,1741763424767,577.82,0.00028564,120]
[355986128,1741763426987,500.0,0.00028564,120]
[355986129,1741763427147,500.0,0.00028564,120]
[355986130,1741763429923,500.0,0.00028564,120]
[355986139,1741763431791,500.0,0.00028564,120]
[355986140,1741763431919,-1523.42660908,9.994e-05,2]
[355986141,1741763431932,-953.01978311,9.994e-05,2]
[355986142,1741763432111,-3735.4,9.994e-05,2]
[355986186,1741763436747,500.0,0.00028564,120]
[355986187,1741763437004,500.0,0.00028564,120]
[355986190,1741763437755,-3850.43796558,9.994e-05,2]
[355986191,1741763437814,-9178.068147,9.994e-05,2]
[355986192,1741763437867,-449.71181961,9.994e-05,2]
[355986194,1741763439697,-569.16499799,9.994e-05,2]
[355986195,1741763439838,500.0,0.00028564,120]
[355986196,1741763439851,-20385.5,9.994e-05,2]
[355986197,1741763439898,-300.34670085,9.994e-05,2]
[355986198,1741763440123,-442.87999995,9.994e-05,2]
[355986199,1741763440137,-394.66555446,9.994e-05,2]
[355986200,1741763440149,-149555.55961837,9.994e-05,2]
[355986201,1741763440159,-662.0,0.0001,2]
[355986202,1741763440169,-66599.30374784,0.0001,2]
[355986203,1741763440179,-900.16128228,0.0001,2]
[355986204,1741763440190,-1510975.92062964,0.0001,2]
[355986210,1741763442769,-2044163.13758399,0.0001,2]
[355986211,1741763442782,-1402.86901155,0.0001,2]
[355986212,1741763442794,-641.59728641,0.0001,2]
[355986213,1741763442905,-9407.99568103,0.0001,2]
[355986214,1741763442944,-262.44822189,0.0001,2]
[355986219,1741763444213,500.0,0.00028564,120]
[355986221,1741763446146,-788.00097222,9.994e-05,2]
[355986222,1741763446159,-496.42704949,9.994e-05,2]
[355986223,1741763446172,-452.839995,9.994e-05,2]
[355986224,1741763446183,-78906.78907915,9.994e-05,2]
[355986225,1741763446196,-688851.94118814,9.994e-05,2]
[355986226,1741763446207,-302266.65034311,0.0001,2]
[355986227,1741763446231,-616.95538,0.0001,2]
[355986228,1741763446244,-5570.45453968,0.0001,2]
[355986229,1741763449506,500.0,0.00028564,120]
[355986230,1741763477224,500.0,0.00028564,120]
[355986231,1741763486059,500.0,0.00028564,120]
[355986232,1741763492225,500.0,0.00028564,120]
[355986233,1741763506982,500.0,0.00028564,120]
[355986234,1741763509384,500.0,0.00028564,120]
[355986235,1741763510988,3513.22766063,9.592e-05,2]
[355986236,1741763511010,3513.22766063,9.592e-05,2]
[355986237,1741763511046,3513.22766063,9.592e-05,2]
[355986238,1741763511071,2163.16701811,9.592e-05,2]
[355986239,1741763511157,500.0,0.00028564,120]
[355986240,1741763513258,500.0,0.00028564,120]
[355986242,1741763515560,500.0,0.00028564,120]
[355986243,1741763525077,500.0,0.00028564,120]
[355986244,1741763539094,500.0,0.00028564,120]
[355986245,1741763540882,438.85113182,0.00028564,120]
[355986246,1741763544513,529.64000695,0.00028564,120]
[355986247,1741763545982,524.51213636,0.00028564,120]
[355986248,1741763549887,500.0,0.00028564,120]
[355986249,1741763550465,500.0,0.00028564,120]
[355986250,1741763550704,500.0,0.00028564,120]
[355986251,1741763559420,500.0,0.00028564,120]
[355986252,1741763559675,500.0,0.00028564,120]
[355986253,1741763562555,500.0,0.00028564,120]
[355986254,1741763577637,500.0,0.00028564,120]
[355986255,1741763577887,500.0,0.00028564,120]
[355986256,1741763578155,500.0,0.00028564,120]
[355986257,1741763592589,500.0,0.00028564,120]
[355986258,1741763592821,500.0,0.00028564,120]
[355986259,1741763593084,508.8,0.00028564,120]
[355986260,1741763609197,500.0,0.00028564,120]
[355986261,1741763609426,500.0,0.00028564,120]
[355986262,1741763615518,500.0,0.00028564,120]
[355986263,1741763615975,500.0,0.00028564,120]
[355986264,1741763616058,500.0,0.00028564,120]
[355986265,1741763617984,500.0,0.00028564,120]
[355986266,1741763619416,500.0,0.00028564,120]
[355986267,1741763619668,500.0,0.00028564,120]
[355986268,1741763633133,580.46959567,0.00028564,120]
[355986269,1741763646466,500.0,0.00028564,120]
[355986270,1741763646719,500.0,0.00028564,120]
[355986271,1741763655356,500.0,0.00028564,120]
[355986272,1741763655610,500.0,0.00028564,120]
[355986273,1741763655884,500.0,0.00028564,120]
[355986274,1741763656573,500.0,0.00028564,120]
[355986275,1741763656821,500.0,0.00028564,120]
[355986276,1741763682313,500.0,0.00028564,120]
[355986277,1741763682731,500.0,0.00028564,120]
[355986278,1741763690383,500.0,0.00028564,120]
[355986279,1741763690638,500.0,0.00028564,120]
[355986280,1741763696013,500.0,0.00028564,120]
[355986281,1741763696250,499.85484891,0.00028564,120]
[355986282,1741763699741,500.0,0.00028555,120]
[355986283,1741763700002,500.0,0.00028555,120]
[355986284,1741763727625,500.0,0.00028555,120]
[355986285,1741763730622,500.0,0.00028555,120]
[355986286,1741763732937,548.11,0.00028555,120]
[355986288,1741763965473,500.0,0.00028555,120]
[355986289,1741763965766,500.0,0.00028555,120]
[355986290,1741763966205,500.0,0.00028555,120]
[355986291,1741763966463,500.0,0.00028555,120]
[355986292,1741763966715,500.0,0.00028555,120]
[355986293,1741763966968,500.0,0.00028555,120]
[355986294,1741763967213,500.0,0.00028555,120]
[355986295,1741763967486,500.0,0.00028555,120]
[355986296,1741763967911,526.8324691,0.00028555,120]
[355986300,1741764288207,500.0,0.0002855,120]
[355986301,1741764288457,500.966,0.0002855,120]
[355986302,1741764336131,12764.84120654,8e-05,2]
[355986303,1741764353875,5222.93598789,8.188e-05,2]
[355986304,1741764354286,34710.37001198,6.94e-05,2]
[355986306,1741764416582,979.54,8.219e-05,2]
[355986307,1741764472329,91400.93624151,8e-05,2]
[355986308,1741764510242,150.0,8.814e-05,2]
[355986311,1741764553079,-386.3203087,8.926e-05,2]
[355986330,1741764631824,-101.2796913,8.926e-05,2]
[355986331,1741764631834,-2000.0,8.926e-05,2]
[355986332,1741764631843,-527.91,8.99e-05,2]
[355986334,1741764631853,-550.0,9e-05,2]
[355986335,1741764631862,-467.11,9e-05,2]
[355986337,1741764631871,-150.0,9.05e-05,2]
[355986339,1741764631880,-1244.1,9.064e-05,2]
[355986341,1741764631889,-77.60030861,9.077e-05,2]
[355986343,1741764631901,-114.97969139,9.077e-05,2]
[355986344,1741764631910,-200.0,9.107e-05,2]
[355986345,1741764631919,-1254.29713861,9.12e-05,2]
[355986346,1741764631930,-282.33183208,9.12e-05,2]
[355986347,1741764631941,-11365.30198208,9.12e-05,2]
[355986348,1741764631952,-534.10516331,9.12e-05,2]
[355986349,1741764631963,-10463.96388392,9.12e-05,2]
[355986350,1741764631972,-1280.76,9.129e-05,2]
[355986351,1741764631982,-1956.58,9.138e-05,2]
[355986352,1741764631991,-1000.0,9.143e-05,2]
[355986353,1741764632001,-707.84,9.143e-05,2]
[355986354,1741764632011,-4884.75,9.143e-05,2]
[355986355,1741764632024,-150.99,9.143e-05,2]
[355986356,1741764632034,-1000.0,9.2e-05,2]
[355986357,1741764632043,-150.0,9.285e-05,2]
[355986358,1741764632053,-262355.26001834,9.3e-05,2]
[355986359,1741764632063,-150.0,9.521e-05,2]
[355986360,1741764632072,-441.87,9.541e-05,2]
[355986361,1741764632081,-778.86,9.541e-05,2]
[355986362,1741764632091,-441.87,9.541e-05,2]
[355986363,1741764632099,-778.86,9.541e-05,2]
[355986364,1741764632109,-601.11,9.541e-05,2]
[355986365,1741764632119,-170.76,9.576e-05,2]
[355986366,1741764632130,-250.0,9.586e-05,2]
[355986367,1741764632140,-3351.42,9.591e-05,2]
[355986368,1741764632150,-170.76,9.735e-05,2]
[355986369,1741764632160,-150.0,9.756e-05,2]
[355986370,1741764632170,-490.0,9.836e-05,2]
[355986372,1741764632179,-170.76,9.895e-05,2]
[355986374,1741764632189,-5000.0,9.9e-05,2]
[355986376,1741764632198,-434.25,9.9e-05,2]
[355986378,1741764632207,-1312.0354,9.9e-05,2]
[355986380,1741764632216,-150.0,9.992e-05,2]
[355986382,1741764632225,-2368.8831968,9.994e-05,2]
[355986384,1741764632234,-5356.1432896,9.994e-05,2]
[355986386,1741764632243,-1451.02,9.999e-05,2]
[355986388,1741764632252,-756.0,0.0001,2]
[355986390,1741764632260,-2008.28358415,0.0001,2]
[355986392,1741764632272,-156911.5802843,0.0001,2]
[355986394,1741764632283,-887.84992617,0.0001,2]
[355986397,1741764632306,-250.22877249,0.0001,2]
[355986399,1741764632317,-368.49929451,0.0001,2]
[355986401,1741764632329,-4128.26688983,0.0001,2]
[355986403,1741764632345,-719.19322923,0.0001,2]
[355986406,1741764632356,-1700.06224403,0.0001,2]
[355986408,1741764632368,-4387.29738386,0.0001,2]
[355986410,1741764632379,-2763.19870811,0.0001,2]
[355986412,1741764632390,-356.00816304,0.0001,2]
[355986414,1741764632400,-541.50708632,0.0001,2]
[355986416,1741764632411,-6773.14167211,0.0001,2]
[355986418,1741764632423,-24421.34703166,0.0001,2]
[355986421,1741764632435,-1691751.01958587,0.0001,2]
[355986424,1741764632446,-7224.38589391,0.0001,2]
[355986426,1741764632458,-1000.0,0.0001,2]
[355986427,1741764632469,-4023.04648129,0.0001,2]
[355986428,1741764632479,-1100.0,0.0001,2]
[355986429,1741764632491,-2238.51260755,0.0001,2]
[355986433,1741764637707,-19099.98090004,0.0001,2]
[355986435,1741764637868,-396.75540801,0.0001,2]
[355986436,1741764637888,-519.07829482,0.0001,2]
[355986437,1741764637899,-290.811,0.0001,2]
[355986438,1741764637912,-533.61098855,0.0001,2]
[355986439,1741764637924,-770.14463354,0.0001,2]
[355986440,1741764637935,-192919.18901973,0.0001,2]
[355986441,1741764637955,-4677.82886025,0.0001,2]
[355986452,1741764639827,-495.68719811,0.0001,2]
[355986455,1741764639875,-80.31280189,0.0001,2]
[355986456,1741764639885,-678316.5683366,0.0001,2]
[355986457,1741764639894,-587.667514,0.0001,2]
[355986458,1741764639903,-541.961,0.0001,2]
[355986459,1741764639912,-908.935,0.0001,2]
[355986460,1741764639922,-1272.673,0.0001,2]
[355986461,1741764639931,-4029.785,0.0001,2]
[355986462,1741764639940,-759.98,0.0001,2]
[355986463,1741764639954,-1576.29164717,0.0001,2]
[355986464,1741764639963,-2572.3632522,0.0001,2]
[355986465,1741764639972,-156.02231096,0.0001,2]
[355986466,1741764639982,-1051831.07623072,0.0001,2]
[355986467,1741764640131,-2170.14205106,0.0001,2]
[355986468,1741764640143,-779.30458002,0.0001,2]
[355986469,1741764640154,-917.65074819,0.0001,2]
[355986470,1741764640490,-10475.18820384,0.0001,2]
[355986500,1741764645962,-601.6529264,0.0001,2]
[355986501,1741764645974,-617.89462,0.0001,2]
[355986502,1741764646110,-546.006,0.0001,2]
[355986505,1741764667284,-150.0,9.431e-05,2]
[355986528,1741765272795,271.77,8.73e-05,2]
[355986532,1741765338641,1000.0,8.725e-05,2]
[355986534,1741765339308,23900.0,8.725e-05,2]
[355986544,1741765424805,531.09,8.724e-05,2]
[355986546,1741765437126,-456.44129,8.901e-05,2]
[355986547,1741765438498,-34345.0,0.00010463,7]
[355986549,1741765451037,-259.53,9.233e-05,2]
[355986550,1741765451060,-242.11,9.257e-05,2]
[355986551,1741765451083,-259.53,9.257e-05,2]
[355986552,1741765451107,-259.53,9.281e-05,2]
[355986553,1741765451129,-259.53,9.306e-05,2]
[355986554,1741765451150,-643.36581,9.307e-05,2]
[355986555,1741765451174,-259.53,9.33e-05,2]
[355986556,1741765451198,-259.53,9.354e-05,2]
[355986557,1741765451223,-259.53,9.379e-05,2]
[355986558,1741765451246,-259.53,9.403e-05,2]
[355986559,1741765451273,-259.53,9.427e-05,2]
[355986560,1741765451294,-482.56,9.427e-05,2]
[355986561,1741765451315,-1495.73,9.427e-05,2]
[355986562,1741765451338,-9954.14,9.427e-05,2]
[355986563,1741765451360,-258.01,9.431e-05,2]
[355986564,1741765451383,-259.53,9.451e-05,2]
[355986565,1741765451406,-259.53,9.476e-05,2]
[355986566,1741765451429,-259.53,9.5e-05,2]
[355986567,1741765451455,-259.53,9.524e-05,2]
[355986568,1741765451479,-259.53,9.549e-05,2]
[355986569,1741765451501,-259.53,9.573e-05,2]
[355986570,1741765451525,-259.53,9.597e-05,2]
[355986571,1741765451549,-259.53,9.622e-05,2]
[355986572,1741765451572,-259.53,9.646e-05,2]
[355986573,1741765451595,-259.53,9.67e-05,2]
[355986574,1741765451620,-259.53,9.694e-05,2]
[355986575,1741765451645,-531.09,9.815e-05,2]
[355986576,1741765451668,-1000.0,9.815e-05,2]
[355986577,1741765451692,-9079.3096,9.9e-05,2]
[355986578,1741765451715,-150.0,9.909e-05,2]
[355986579,1741765451736,-6628.08459,9.91e-05,2]
[355986651,1741765502226,500.0,0.00028564,120]
[355986652,1741765502471,254.67,0.00028564,120]
[355986653,1741765506825,402.51350214,0.00028564,120]
[355986654,1741765509646,-1144.47,9.209e-05,2]
[355986655,1741765509668,-715.3783,9.9e-05,2]
[355986656,1741765509689,-300.0,9.909e-05,2]
[355986657,1741765509711,-3430.47517323,9.972e-05,2]
[355986658,1741765509731,-150.0,9.973e-05,2]
[355986659,1741765509753,-2572.36325218,9.974e-05,2]
[355986660,1741765509774,-1687.31327459,9.994e-05,2]
[355986662,1741765522168,309.48307712,0.00028564,120]
[355986663,1741765555657,1041.66,0.00028564,120]
[355986664,1741765555909,1041.66,0.00028564,120]
[355986665,1741765556148,1041.66,0.00028564,120]
[355986666,1741765556409,1041.66,0.00028564,120]
[355986667,1741765556641,1041.66,0.00028564,120]
[355986668,1741765556891,1041.66,0.00028564,120]
[355986669,1741765557129,1041.66,0.00028564,120]
[355986670,1741765557466,1041.66,0.00028564,120]
[355986671,1741765557717,1041.66,0.00028564,120]
[355986672,1741765558023,1041.66,0.00028564,120]
[355986673,1741765558293,1041.66,0.00028564,120]
[355986674,1741765558537,1041.66,0.00028564,120]
[355986675,1741765558786,1041.66,0.00028564,120]
[355986676,1741765559070,1041.66,0.00028564,120]
[355986677,1741765559300,1041.66,0.00028564,120]
[355986678,1741765559556,1041.66,0.00028564,120]
[355986679,1741765559801,1041.66,0.00028564,120]
[355986680,1741765560067,1041.66,0.00028564,120]
[355986681,1741765560459,1041.66,0.00028564,120]
[355986682,1741765560543,1041.66,0.00028564,120]
[355986683,1741765560781,1041.66,0.00028564,120]
[355986684,1741765561055,1041.66,0.00028564,120]
[355986685,1741765561291,1041.66,0.00028564,120]
[355986686,1741765561542,1041.82,0.00028564,120]
[355986687,1741765577525,990.24,8.219e-05,2]
[355986689,1741765791976,500.0,0.00028564,120]
[355986690,1741765792218,500.0,0.00028564,120]
[355986691,1741765815914,-150.0,9e-05,2]
[355986692,1741765830162,500.0,0.00028564,120]
[355986693,1741765832271,-400.0,9e-05,2]
[355986694,1741765832281,-150.0,9.093e-05,2]
[355986695,1741765832290,-131.5968828,9.336e-05,2]
[355986696,1741765832301,-18.4031172,9.336e-05,2]
[355986697,1741765832311,-150.0,9.578e-05,2]
[355986698,1741765832321,-150.0,9.821e-05,2]
[355986699,1741765832330,-156.02231086,9.927e-05,2]
[355986700,1741765832339,-1988.06457194,9.927e-05,2]
[355986701,1741765833239,-299.68117616,9.927e-05,2]
[355986703,1741765838003,-566.26057689,9.927e-05,2]
[355986704,1741765838018,-2300.80000002,9.927e-05,2]
[355986705,1741765838031,-311.5147905,9.927e-05,2]
[355986706,1741765838044,-476.81295156,9.927e-05,2]
[355986707,1741765838071,-3056.86593293,9.927e-05,2]
[355986708,1741765838082,-156.02231086,9.955e-05,2]
[355986709,1741765838092,-156.02231086,9.982e-05,2]
[355986710,1741765838102,-1079.53,9.997e-05,2]
[355986711,1741765838113,-3171.55944535,9.999e-05,2]
[355986712,1741765838125,-1660.76243857,9.999e-05,2]
[355986713,1741765838138,-591.2982445,9.999e-05,2]
[355986725,1741765839546,-333.38,9.927e-05,2]
[355986726,1741765840247,-666.62,9.927e-05,2]
[355986727,1741765840258,-17060.361041,9.999e-05,2]
[355986728,1741765840269,-1472.4,9.999e-05,2]
[355986729,1741765840280,-500.0,9.999e-05,2]
[355986730,1741765840291,-516.47666522,9.999e-05,2]
[355986731,1741765840301,-528.0,0.0001,2]
[355986732,1741765840313,-452592.16777138,0.0001,2]
[355986733,1741765840324,-4543734.47964177,0.0001,2]
[355986734,1741765840337,-405.405,0.0001,2]
[355986735,1741765840349,-1742633.63609354,0.0001,2]
[355986736,1741765840362,-20636.14758376,0.0001,2]
[355986737,1741765840376,-283.26899998,0.0001,2]
[355986738,1741765840388,-3131.62251384,0.0001,2]
[355986739,1741765840424,-2432.31624738,0.0001,2]
[355986740,1741765840587,-5948.8487956,0.0001,2]
[355986741,1741765840600,-5041.35769467,0.0001,2]
[355986767,1741765843163,-260.62340292,0.0001,2]
[355986768,1741765843186,-4639.31739957,0.0001,2]
[355986769,1741765843203,-13470.87731344,0.0001,2]
[355986770,1741765843218,-755.2,0.0001,2]
[355986771,1741765843234,-23003.45999995,0.0001,2]
[355986772,1741765843264,-264.1,0.0001,2]
[355986773,1741765843513,-271.92,0.0001,2]
[355986784,1741765846093,-1065.83165509,0.0001,2]